[Event "Israel-ch Youth U8-18 2024"]
[Site "Kfar Saba"]
[Date "2024.04.19"]
[Round "6.9"]
[White "Sternfeld, Tomer"]
[Black "Berlad, Asaf"]
[Result "1-0"]
[ECO "A25"]
[WhiteElo "1866"]
[BlackElo "1900"]
[Annotator "TA"]
[PlyCount "65"]
[EventDate "2024.04.10"]
[EventType "swiss"]
[EventCountry "ISR"]
[SourceTitle "playchess.com"]
[Source "ChessBase"]
[SourceQuality "1"]
[TimeControl "5400+30"]

{[%evp 12,65,19,0,-6,2,0,2,40,10,27,3,7,-14,-17,-19,-8,-14,0,0,0,-15,70,62,116,112,122,131,129,131,130,130,187,156,271,175,491,177,188,177,171,172,192,158,262,244,273,0,272,262,411,401,363,270,1131,1121]} 1. c4 {[%emt 0:00:03]} e5 {[%emt 0:00:58]} 2. g3 {[%emt 0:00:24]} Nc6 {[%emt 0:00:21]} 3. Bg2 {[%emt 0:00:32]} f5 {[%emt 0:00:16]} 4. Nc3 {[%emt 0:09:41]} Nf6 {[%emt 0:00:25]} 5. d3 {[%emt 0:03:54]} Bb4 {[%emt 0:00:34]} 6. Bd2 {[%emt 0:05:01]} O-O {[%emt 0:00:45]} 7. Nd5 {[%emt 0:08:58]} Bxd2+ {[%emt 0:06:54]} 8. Qxd2 {[%emt 0:00:10]} d6 {[%emt 0:00:26]} 9. e3 {[%emt 0:07:02]} Ne7 {[%emt 0:05:39] The position is equal.} 10. Ne2 {[%emt 0:07:38]} c6 {[%emt 0:02:38]} 11. Nxe7+ {[%emt 0:01:06]} Qxe7 {[%emt 0:00:09]} 12. d4 {[%emt 0:10:58]} Be6 {[%emt 0:15:48]} 13. Rc1 {[%emt 0:05:40]} Bf7 {[%emt 0:02:57]} 14. O-O {[%emt 0:03:14]} Ne4 {[%emt 0:14:22]} 15. Qc2 {[%emt 0:03:57]} Bh5 {[%emt 0:01:06]} 16. Rce1 {[%emt 0:09:49]} Bxe2 {[%emt 0:08:03]} (16... Nf6 $11) 17. Rxe2 $14 {[%emt 0:01:59]} Ng5 {[%emt 0:00:53]} (17... Qe6 $14) 18. f4 $16 {[%emt 0:03:42]} Nf7 {[%emt 0:13:05]} 19. fxe5 {[%emt 0:01:57]} dxe5 {[%emt 0:00:09]} 20. Rxf5 {[%emt 0:00:35]} Rad8 {[%emt 0:00:40]} 21. d5 {[%emt 0:03:42] White is more active.} Qc5 {[%emt 0:01:10]} (21... c5 $16 22. Ref2 g6) 22. Qc3 {[%emt 0:01:36]} Rfe8 {[%emt 0:00:38]} (22... Nd6 $16 {was worth a try.} 23. Rxe5 Qxc4 24. Qxc4 Nxc4) 23. b4 {[%emt 0:01:24] Black is weak on the light squares} Qb6 {[%emt 0:00:48] [#]} (23... Qd6 24. dxc6 bxc6) 24. Rf1 $2 {[%emt 0:05:55]} ({Don't take} 24. c5 Qc7 25. d6 Nxd6 26. cxd6 Qxd6 27. Qb3+ Kh8) (24. Ref2 Rd7 25. c5) 24... c5 $18 {[%emt 0:02:52]} 25. b5 {[%emt 0:01:02]} Qh6 {[%emt 0:02:08]} 26. Qa3 {[%emt 0:01:32][%csl LRa7,LRc5]} Qb6 {[%emt 0:01:54]} 27. Ref2 {[%emt 0:00:53]} Re7 {[%emt 0:01:57]} (27... Nd6 $16) 28. Qc3 {[%emt 0:01:13]} Qh6 {[%emt 0:00:45]} 29. Qa3 {[%emt 0:00:24] Hoping for d6.} Qb6 {[%emt 0:03:31]} 30. Qd3 {[%emt 0:00:13]} Qh6 {[%emt 0:01:15] [#]} (30... Qd6 {might work better.} 31. Be4 Ng5) 31. d6 $1 {[%emt 0:00:50][%mdl 512]} Rxd6 {[%emt 0:06:00]} 32. Bd5 {[%emt 0:00:19]} Rxd5 {[%emt 0:00:14]} (32... Rf6 33. Rf5 Qg6) 33. Rxf7 {[%emt 0:00:44] Weighted Error Value: White=0.47/Black=0.44.  Mistake:       	White=1     	Black=8      Inaccurate:     	White=2     	Black=1      OK:         	White=7     	Black=6      Best:        	White=2     	Black=1} 1-0

[Event "Israel-ch Youth U8-18 2024"]
[Site "Kfar Saba"]
[Date "2024.04.19"]
[Round "6.10"]
[White "Gurevich, Neria"]
[Black "Sason, Noam"]
[Result "1-0"]
[ECO "E61"]
[WhiteElo "1844"]
[BlackElo "1903"]
[Annotator "TA"]
[PlyCount "53"]
[EventDate "2024.04.10"]
[EventType "swiss"]
[EventCountry "ISR"]
[SourceTitle "playchess.com"]
[Source "ChessBase"]
[SourceQuality "1"]
[TimeControl "5400+30"]

{[%evp 11,53,17,47,45,43,42,43,37,45,35,50,60,60,-2,6,0,0,0,20,0,0,0,0,0,80,77,91,40,65,46,181,158,243,247,190,217,385,385,389,388,487,475,29989,29990]} 1. d4 {[%emt 0:00:04]} Nf6 {[%emt 0:00:13]} 2. c4 {[%emt 0:00:11]} d6 {[%emt 0:00:03]} 3. Nc3 {[%emt 0:00:46]} e5 {[%emt 0:00:38]} 4. Nf3 {[%emt 0:00:51]} Nbd7 {[%emt 0:00:19]} 5. d5 {[%emt 0:01:35]} g6 {[%emt 0:02:10]} 6. e4 {[%emt 0:00:52]} Bg7 {[%emt 0:00:56]} 7. Bd3 {[%emt 0:01:51]} Nc5 {[%emt 0:00:49]} 8. Bc2 {[%emt 0:00:30]} a5 {[%emt 0:00:11]} 9. O-O {[%emt 0:04:01] White is slightly better.} O-O {[%emt 0:00:43]} 10. Rb1 {[%emt 0:01:41]} Ne8 {[%emt 0:05:40]} 11. a3 {[%emt 0:10:48]} f5 {[%emt 0:01:59]} 12. b4 {[%emt 0:06:03]} (12. exf5 $14 gxf5 13. b4) 12... Nxe4 $11 {[%emt 0:03:40]} 13. Nxe4 {[%emt 0:00:38]} fxe4 {[%emt 0:00:06]} 14. Ng5 {[%emt 0:00:54]} Nf6 {[%emt 0:02:41]} 15. Nxe4 {[%emt 0:00:53]} Nxe4 {[%emt 0:01:31]} 16. Bxe4 {[%emt 0:00:33]} Qh4 {[%emt 0:01:46]} 17. Qc2 {[%emt 0:13:07]} Rf5 {[%emt 0:13:06]} 18. g3 $16 {[%emt 0:04:51]} Qe7 {[%emt 0:02:27]} 19. Be3 {[%emt 0:04:17]} (19. bxa5 $16 Rxa5 20. Qd2) 19... Rf8 {[%emt 0:02:25]} 20. c5 {[%emt 0:06:23] White is more active.} Bf5 {[%emt 0:01:57] Black cannot hold the game after this.} (20... axb4 $14 21. a4 (21. Rxb4 Rxa3 22. Rc1 Rf7 $15) (21. axb4 Bf5 $16) 21... Rf7 (21... Bh3 22. Rfd1 $16)) 21. bxa5 $18 {[%emt 0:03:22]} Bxe4 {[%emt 0:04:32]} (21... Bc8 $16 22. Rb5 Bf6) 22. Qxe4 {[%emt 0:00:13]} Rxa5 {[%emt 0:01:39]} 23. Rxb7 {[%emt 0:01:55][%cal Bb1b7,Bb7c7,Bc7g7][%mdl 32] Hoping for Bd2.} Rxa3 $2 {[%emt 0:06:42] [#]} (23... dxc5 24. Rfb1 Rf7 25. Rb8+ Bf8) 24. cxd6 $1 {[%emt 0:07:01]} Qxd6 {[%emt 0:00:13]} 25. Rc1 {[%emt 0:00:20]} Qa6 {[%emt 0:04:43] ...Rxe3 would now be deadly.} 26. Rbxc7 {[%emt 0:00:54]} Qe2 {[%emt 0:02:31] [#]} (26... Re8 $18 27. d6 Qxd6) 27. Rxg7+ $1 {[%emt 0:00:41][%mdl 512] Weighted Error Value: White=0.10 (very precise) /Black=0.74.  Mistake:       	White=2     	Black=5      OK:         	White=7     	Black=5      Best:        	White=2     	---        Strong:       	White=1     	---        Brilliant:      	White=1     	---} 1-0

[Event "Israel-ch Youth U8-18 2024"]
[Site "Kfar Saba"]
[Date "2024.04.19"]
[Round "6.11"]
[White "Shilon Rahav, Eliran"]
[Black "Vardi, Daniel"]
[Result "1/2-1/2"]
[ECO "B24"]
[WhiteElo "2116"]
[BlackElo "1937"]
[Annotator "TA"]
[PlyCount "114"]
[EventDate "2024.04.10"]
[EventType "swiss"]
[EventCountry "ISR"]
[SourceTitle "playchess.com"]
[Source "ChessBase"]
[SourceQuality "1"]
[TimeControl "5400+30"]

{[%evp 14,114,16,23,32,0,0,0,-1,-16,-16,-46,-15,-9,-6,-18,-22,-54,-57,-54,-50,-57,-49,-53,-44,-39,-37,-62,-41,-149,-81,-84,-34,-45,0,0,0,0,0,0,0,0,0,0,7,0,4,0,0,0,0,0,3,9,9,2,16,0,0,0,0,0,0,0,0,0,0,0,0,0,0,0,0,0,0,0,0,0,0,0,0,8,21,21,22,0,29,0,44,0,54,0,0,0,0,0,0,0,0,0,0,0,0]} 1. e4 {[%emt 0:00:02]} c5 {[%emt 0:00:01]} 2. Nc3 {[%emt 0:00:15]} e6 {[%emt 0:00:06]} 3. Nge2 {[%emt 0:00:06]} Nc6 {[%emt 0:00:08]} 4. g3 {[%emt 0:00:30]} d5 {[%emt 0:00:20]} 5. exd5 {[%emt 0:00:38]} exd5 {[%emt 0:00:01]} 6. d4 {[%emt 0:00:55]} cxd4 {[%emt 0:01:30]} 7. Nxd4 {[%emt 0:00:39]} Nf6 {[%emt 0:00:25]} 8. Bg2 {[%emt 0:00:44]} Bc5 {[%emt 0:01:29]} 9. Be3 {[%emt 0:02:47] [#] And now Nxc6 would win.} Nxd4 {[%emt 0:02:10]} 10. Bxd4 {[%emt 0:00:11]} Qe7+ {[%emt 0:00:29]} 11. Kf1 {[%emt 0:03:01]} O-O {[%emt 0:03:00]} 12. Qd2 {[%emt 0:09:21]} Bxd4 {[%emt 0:09:50]} 13. Qxd4 {[%emt 0:00:13]} Re8 {[%emt 0:00:01]} 14. h3 {[%emt 0:06:22]} (14. h4 {simplifies} Bf5 15. Nxd5 Nxd5 16. Qxd5 Bxc2 17. Qxb7 Qxb7 18. Bxb7 Rab8 19. Bf3) 14... Bf5 {[%emt 0:04:27]} 15. Bf3 {[%emt 0:16:12]} Bxc2 {[%emt 0:04:08]} 16. Kg2 {[%emt 0:00:18]} Be4 {[%emt 0:02:03]} 17. Rhe1 {[%emt 0:01:55]} Bxf3+ {[%emt 0:01:07]} 18. Kxf3 {[%emt 0:00:07]} Qd7 {[%emt 0:02:34]} 19. Kg2 {[%emt 0:01:48]} b6 {[%emt 0:01:22]} 20. g4 {[%emt 0:03:19]} h6 {[%emt 0:03:02]} 21. f4 {[%emt 0:05:51]} (21. Rxe8+ $15 Rxe8 22. Rd1) 21... Qd6 {[%emt 0:20:33]} ({Better is} 21... Rac8 {White must now prevent ...Rc4.} 22. Rxe8+ Qxe8 (22... Rxe8 23. Rf1 $17)) 22. Re5 $17 {[%emt 0:04:08]} Qc5 {[%emt 0:03:40]} ({Black should try} 22... Rad8 $17 23. Rd1 Qc6) 23. Rd1 {[%emt 0:00:44]} Rad8 {[%emt 0:01:07]} (23... Qc6 {feels hotter.} 24. Nxd5 Rad8 25. Kf2 Rxd5 26. Rxd5 Nxd5 27. Qxd5 Qf6) 24. Qxc5 {[%emt 0:02:51]} bxc5 {[%emt 0:00:09]} 25. Nxd5 {[%emt 0:00:08]} Nxd5 {[%emt 0:00:40]} 26. Rdxd5 {[%emt 0:00:07]} Rxd5 {[%emt 0:00:22]} 27. Rxe8+ $11 {[%emt 0:00:04][%mdl 4096] Endgame. KR-KR} (27. Rxd5 $5 Re2+ $8 28. Kg3 $15) 27... Kh7 {[%emt 0:00:05]} 28. Kf3 {[%emt 0:01:28]} Rd3+ {[%emt 0:01:23]} 29. Re3 {[%emt 0:00:57]} Rd2 {[%emt 0:00:05]} 30. Re2 {[%emt 0:01:39]} Rd3+ {[%emt 0:00:07]} 31. Re3 {[%emt 0:05:21]} Rd2 {[%emt 0:00:12]} 32. Rb3 {[%emt 0:00:18]} c4 {[%emt 0:00:44]} 33. Rb7 {[%emt 0:01:32][%csl LRa7,LRf7][%cal Oa2a4]} f6 {[%emt 0:00:35]} 34. a4 {[%emt 0:01:47][%cal Oa4a5]} Rd3+ {[%emt 0:03:09]} 35. Kg2 {[%emt 0:04:22][%cal Oa4a5]} Rd2+ {[%emt 0:00:16]} 36. Kg3 {[%emt 0:01:44][%cal Oa4a5]} Rd3+ {[%emt 0:00:04]} 37. Kh4 {[%emt 0:00:09]} a5 {[%emt 0:00:33]} 38. f5 {[%emt 0:00:35]} Re3 {[%emt 0:00:29]} 39. Rb5 {[%emt 0:01:58]} c3 {[%emt 0:01:05]} 40. bxc3 {[%emt 0:01:04]} Rxc3 {[%emt 0:00:04]} 41. Rxa5 {[%emt 0:00:06]} Rb3 {[%emt 0:00:32]} 42. Ra7 {[%emt 0:02:27]} Rc3 {[%emt 0:00:10]} 43. a5 {[%emt 0:00:43]} Rb3 {[%emt 0:00:07]} 44. a6 {[%emt 0:00:23]} Ra3 {[%emt 0:00:05]} 45. Ra8 {[%emt 0:00:26]} g5+ {[%emt 0:01:17]} 46. fxg6+ {[%emt 0:00:15]} Kxg6 {[%emt 0:00:10]} 47. Ra7 {[%emt 0:00:24]} Ra4 {[%emt 0:00:21]} 48. Kg3 {[%emt 0:01:16]} Ra3+ {[%emt 0:00:10]} 49. Kg2 {[%emt 0:00:16]} Ra2+ {[%emt 0:00:03]} 50. Kg3 {[%emt 0:03:14]} Ra3+ {[%emt 0:00:08]} 51. Kg2 {[%emt 0:01:14]} Ra2+ {[%emt 0:00:01]} 52. Kf1 {[%emt 0:00:16]} (52. Kf3 $14) 52... Kg5 {[%emt 0:00:51] The position is equal.} 53. Rg7+ {[%emt 0:02:48]} Kh4 {[%emt 0:00:23]} 54. a7 {[%emt 0:00:34]} Kxh3 {[%emt 0:00:14]} 55. Ke1 {[%emt 0:01:12]} Kg3 {[%emt 0:00:16]} 56. Kd1 {[%emt 0:00:12]} Kf4 {[%emt 0:00:06]} 57. Kc1 {[%emt 0:00:22]} f5 {[%emt 0:00:14] Weighted Error Value: White=0.13 (very precise) /Black=0.09 (flawless) .  Mistake:       	White=2     	Black=2      Inaccurate:     	White=3     	Black=3      OK:         	White=16    	Black=25     Best:        	White=1     	Black=3} 1/2-1/2

[Event "Israel-ch Youth U8-18 2024"]
[Site "Kfar Saba"]
[Date "2024.04.19"]
[Round "6.12"]
[White "Aranovski, Maximilian"]
[Black "Cohen, Yisgav"]
[Result "1-0"]
[ECO "A48"]
[WhiteElo "1758"]
[BlackElo "1478"]
[Annotator "NA RC COMBH"]
[PlyCount "139"]
[EventDate "2024.04.10"]
[EventType "swiss"]
[EventCountry "ISR"]
[SourceTitle "playchess.com"]
[Source "ChessBase"]
[SourceQuality "1"]
[TimeControl "5400+30"]

1. d4 {[%emt 0:00:03]} Nf6 {[%emt 0:00:07]} 2. Bf4 {[%emt 0:00:10]} g6 {[%emt 0:00:23]} 3. e3 {[%emt 0:00:13]} Bg7 {[%emt 0:00:20]} 4. Nf3 {[%emt 0:00:11]} d6 {[%emt 0:00:12]} 5. Be2 {[%emt 0:00:13]} O-O {[%emt 0:00:11]} 6. h3 {[%emt 0:00:14]} Nfd7 {[%emt 0:00:31]} 7. O-O {[%emt 0:00:36]} e5 {[%emt 0:00:12]} 8. Bh2 {[%emt 0:01:14]} Nc6 {[%emt 0:00:44]} 9. c3 {[%emt 0:01:11]} f5 {[%emt 0:00:58]} 10. Nbd2 {[%emt 0:02:18]} Nb6 {[%emt 0:01:27]} 11. dxe5 {[%emt 0:03:02]} dxe5 {[%emt 0:01:14]} 12. Nc4 {[%emt 0:02:34]} Nxc4 {[%emt 0:00:31]} 13. Bxc4+ {[%emt 0:00:07]} Kh8 {[%emt 0:00:10]} 14. Qc2 {[%emt 0:00:57]} b6 {[%emt 0:02:06]} 15. Rad1 {[%emt 0:01:47]} Qf6 {[%emt 0:01:15]} 16. Bd5 {[%emt 0:04:19]} Bb7 {[%emt 0:00:57]} 17. Nxe5 {[%emt 0:03:57]} Nxe5 {[%emt 0:00:42]} 18. Bxe5 {[%emt 0:00:32]} Qxe5 {[%emt 0:00:07]} 19. Bxb7 {[%emt 0:00:11]} Rae8 {[%emt 0:00:42]} 20. Rd5 {[%emt 0:05:16]} Qe6 {[%emt 0:01:24]} 21. Rfd1 {[%emt 0:00:28]} Rb8 {[%emt 0:01:56]} 22. Ba6 {[%emt 0:01:01]} c6 {[%emt 0:01:41]} 23. Rd7 {[%emt 0:06:49]} Qxa2 {[%emt 0:00:43]} 24. Rxa7 {[%emt 0:00:18]} Rfd8 {[%emt 0:00:16]} 25. Bc8 {[%emt 0:06:22]} Qg8 {[%emt 0:03:21]} 26. Rxd8 {[%emt 0:00:54]} Qxd8 {[%emt 0:00:10]} 27. Be6 {[%emt 0:01:19]} Qd6 {[%emt 0:01:00]} 28. Bb3 {[%emt 0:01:57]} Re8 {[%emt 0:01:58]} 29. Qd1 {[%emt 0:01:59]} Qxd1+ {[%emt 0:02:44]} 30. Bxd1 {[%emt 0:00:02]} Rd8 {[%emt 0:00:18]} 31. Bf3 {[%emt 0:01:40]} Be5 {[%emt 0:00:21]} 32. Rb7 {[%emt 0:02:53]} b5 {[%emt 0:01:00]} 33. Kf1 {[%emt 0:52:13]} Rd2 {[%emt 0:00:57]} 34. Bxc6 {[%emt 0:00:00]} Rxb2 {[%emt 0:00:26]} 35. Bxb5 {[%emt 0:00:00]} Bxc3 {[%emt 0:00:30]} 36. Rc7 {[%emt 0:00:00]} Rxb5 {[%emt 0:00:57]} 37. Rxc3 {[%emt 0:00:00]} Kg7 {[%emt 0:00:14]} 38. Ke2 {[%emt 0:00:00]} h5 {[%emt 0:01:30]} 39. Rc4 {[%emt 0:00:00]} Kh6 {[%emt 0:01:05]} 40. g4 {[%emt 0:00:00]} Kg5 {[%emt 0:03:00]} 41. h4+ {[%emt 0:00:00]} Kxh4 {[%emt 0:02:07]} 42. gxf5+ {[%emt 0:00:00]} Kg5 {[%emt 0:00:07]} 43. fxg6 {[%emt 0:00:00]} Kxg6 {[%emt 0:00:06]} 44. f4 {[%emt 0:00:00]} h4 {[%emt 0:02:59]} 45. Kf3 {[%emt 0:00:00]} Kh5 {[%emt 0:02:53]} 46. Rc8 {[%emt 0:00:00]} Kg6 {[%emt 0:02:08]} 47. Kg4 {[%emt 0:00:00]} h3 {[%emt 0:01:57]} 48. Kxh3 {[%emt 0:00:00]} Rb3 {[%emt 0:00:04]} 49. Re8 {[%emt 0:00:00]} Kf5 {[%emt 0:00:51]} 50. Re5+ {[%emt 0:00:00]} Kf6 {[%emt 1:03:58]} 51. Kg4 {[%emt 0:00:00]} Rd3 {[%emt 0:00:00]} 52. e4 {[%emt 0:00:00]} Rd1 {[%emt 0:00:00]} 53. Ra5 {[%emt 0:00:00]} Rg1+ {[%emt 0:00:00]} 54. Kf3 {[%emt 0:00:00]} Rf1+ {[%emt 0:00:00]} 55. Kg3 {[%emt 0:00:00]} Rg1+ {[%emt 0:00:00]} 56. Kf2 {[%emt 0:00:00]} Rg4 {[%emt 0:00:00]} 57. Ra6+ {[%emt 0:12:00]} Ke7 {[%emt 0:00:00]} 58. Kf3 {[%emt 0:00:00]} Rg1 {[%emt 0:00:00]} 59. f5 {[%emt 0:00:00]} Re1 {[%emt 0:00:00]} 60. Kf4 {[%emt 0:00:00]} Rb1 {[%emt 0:00:00]} 61. Ra5 {[%emt 0:00:00]} Rb7 {[%emt 0:00:00]} 62. Ke5 {[%emt 0:00:00]} Rd7 {[%emt 0:00:00]} 63. f6+ {[%emt 0:00:00]} Kf7 {[%emt 0:00:00]} 64. Kf5 Rd1 {[%emt 0:07:00]} 65. Ra7+ {[%emt 0:04:00]} Kf8 {[%emt 0:00:00]} 66. e5 {[%emt 0:00:00]} Re1 {[%emt 0:00:00]} 67. Ke6 {[%emt 0:00:00]} Kg8 {[%emt 0:00:00]} 68. f7+ {[%emt 0:00:00]} Kg7 {[%emt 0:00:00]} 69. Ra8 {[%emt 0:00:00]} Rf1 {[%emt 0:00:00]} 70. Rg8+ {[%emt 0:00:00]} 1-0

[Event "Israel-ch Youth U8-18 2024"]
[Site "Kfar Saba"]
[Date "2024.04.19"]
[Round "6.13"]
[White "Eshkol, Idan"]
[Black "Ronin, Ilan"]
[Result "0-1"]
[ECO "B35"]
[WhiteElo "1518"]
[BlackElo "1555"]
[Annotator "NA RC COMBH"]
[PlyCount "108"]
[EventDate "2024.04.10"]
[EventType "swiss"]
[EventCountry "ISR"]
[SourceTitle "playchess.com"]
[Source "ChessBase"]
[SourceQuality "1"]
[TimeControl "5400+30"]

1. e4 {[%emt 0:00:03]} c5 {[%emt 0:00:09]} 2. Nf3 {[%emt 0:00:07]} Nc6 {[%emt 0:00:18]} 3. Nc3 {[%emt 0:00:08]} g6 {[%emt 0:00:08]} 4. d4 {[%emt 0:00:13]} cxd4 {[%emt 0:00:29]} 5. Nxd4 {[%emt 0:00:52]} Bg7 {[%emt 0:01:14]} 6. Be3 {[%emt 0:01:49]} Nf6 {[%emt 0:00:52]} 7. Bc4 {[%emt 0:01:52]} O-O {[%emt 0:01:37]} 8. Bb3 {[%emt 0:03:53]} Re8 {[%emt 0:01:15]} 9. f3 {[%emt 0:00:44]} d5 {[%emt 0:01:07]} 10. Nxd5 {[%emt 0:09:53]} Nxd5 {[%emt 0:03:32]} 11. Bxd5 {[%emt 0:00:39]} Nxd4 {[%emt 0:00:05]} 12. Bxd4 {[%emt 0:03:19]} Bxd4 {[%emt 0:00:08]} 13. Qxd4 {[%emt 0:00:38]} e6 {[%emt 0:00:12]} 14. O-O-O {[%emt 0:00:35]} exd5 {[%emt 0:00:12]} 15. h4 {[%emt 0:00:19]} Qe7 {[%emt 0:00:56]} 16. h5 {[%emt 0:04:13]} Qe5 {[%emt 0:00:39]} 17. Qf2 {[%emt 0:00:38]} Qf4+ {[%emt 0:00:24]} 18. Kb1 {[%emt 0:00:09]} dxe4 {[%emt 0:00:34]} 19. Rh4 {[%emt 0:03:27]} e3 {[%emt 0:02:39]} 20. Qe1 {[%emt 0:00:06]} Qf6 {[%emt 0:01:15]} 21. Qh1 {[%emt 0:02:46]} g5 {[%emt 0:01:05]} 22. Rb4 {[%emt 1:05:07]} h6 {[%emt 0:01:35]} 23. g3 {[%emt 0:00:00]} a5 {[%emt 0:01:00]} 24. Rb5 {[%emt 0:00:00]} Bd7 {[%emt 0:01:16]} 25. Rc5 {[%emt 0:00:00]} Bc6 {[%emt 0:00:36]} 26. Rxc6 {[%emt 0:00:00]} bxc6 {[%emt 0:00:13]} 27. f4 {[%emt 0:00:00]} Rab8 {[%emt 0:00:10]} 28. b3 {[%emt 0:00:00]} e2 {[%emt 0:00:26]} 29. Re1 {[%emt 0:00:00]} Rbd8 {[%emt 0:00:51]} 30. fxg5 {[%emt 0:04:00]} Qxg5 {[%emt 0:00:12]} 31. a4 {[%emt 0:00:30]} Qd5 {[%emt 0:00:29]} 32. Qxd5 {[%emt 0:00:00]} Rxd5 {[%emt 0:00:09]} 33. Kc1 {[%emt 0:00:00]} Rxh5 {[%emt 0:00:26]} 34. Kd2 {[%emt 0:00:00]} Rd5+ {[%emt 0:00:12]} 35. Kc1 {[%emt 0:00:00]} Rd1+ {[%emt 0:00:03]} 36. Rxd1 {[%emt 0:00:00]} exd1=Q+ {[%emt 0:00:11]} 37. Kxd1 {[%emt 0:00:00]} Re3 {[%emt 0:00:05]} 38. Kd2 {[%emt 0:00:00]} Rxg3 {[%emt 0:00:08]} 39. c3 {[%emt 0:00:00]} h5 {[%emt 0:00:07]} 40. b4 {[%emt 0:00:00]} axb4 {[%emt 0:00:15]} 41. cxb4 {[%emt 0:00:00]} Rb3 {[%emt 0:00:03]} 42. b5 {[%emt 0:00:00]} cxb5 {[%emt 0:00:04]} 43. axb5 {[%emt 0:00:00]} Rxb5 {[%emt 0:00:04]} 44. Ke3 {[%emt 0:00:00]} Rg5 {[%emt 0:00:07]} 45. Kf4 {[%emt 0:00:00]} Rg6 {[%emt 0:00:11]} 46. Kf5 {[%emt 0:00:00]} h4 {[%emt 0:00:09]} 47. Ke5 {[%emt 0:00:00]} h3 {[%emt 0:00:05]} 48. Ke4 {[%emt 0:00:00]} h2 {[%emt 0:00:10]} 49. Kf5 {[%emt 0:00:00]} h1=Q {[%emt 0:00:07]} 50. Ke5 {[%emt 0:00:00]} Qh5+ {[%emt 0:00:20]} 51. Kf4 {[%emt 0:00:00]} Rg4+ {[%emt 0:00:05]} 52. Kf3 {[%emt 0:00:00]} Qh3+ {[%emt 0:00:09]} 53. Kf2 {[%emt 0:00:00]} Rg2+ {[%emt 0:00:07]} 54. Kf1 {[%emt 0:00:00]} Qh1# {[%emt 0:00:02]} 0-1

[Event "Israel-ch Youth U8-18 2024"]
[Site "Kfar Saba"]
[Date "2024.04.19"]
[Round "6.14"]
[White "Roth, Elai"]
[Black "Hochman, Gur"]
[Result "1-0"]
[ECO "C16"]
[WhiteElo "1537"]
[BlackElo "1629"]
[Annotator "NA RC COMBH"]
[PlyCount "135"]
[EventDate "2024.04.10"]
[EventType "swiss"]
[EventCountry "ISR"]
[SourceTitle "playchess.com"]
[Source "ChessBase"]
[SourceQuality "1"]
[TimeControl "5400+30"]

1. e4 {[%emt 0:00:02]} e6 {[%emt 0:00:05]} 2. d4 {[%emt 0:00:07]} d5 {[%emt 0:00:05]} 3. Nc3 {[%emt 0:00:05]} Bb4 {[%emt 0:00:13]} 4. e5 {[%emt 0:00:18]} Qd7 {[%emt 0:00:26]} 5. f4 {[%emt 0:02:08]} Ne7 {[%emt 0:03:37]} 6. Nf3 {[%emt 0:02:47]} b6 {[%emt 0:02:14]} 7. Bd3 {[%emt 0:05:52]} Ba6 {[%emt 0:01:27]} 8. Bxa6 {[%emt 0:05:26]} Nxa6 {[%emt 0:00:20]} 9. O-O {[%emt 0:00:40]} Nb8 {[%emt 0:01:58]} 10. Ne2 {[%emt 0:02:08]} Nf5 {[%emt 0:02:46]} 11. c3 {[%emt 0:04:45]} Be7 {[%emt 0:00:23]} 12. Bd2 {[%emt 0:02:52]} c5 {[%emt 0:05:16]} 13. Rc1 {[%emt 0:04:10]} Nc6 {[%emt 0:08:07]} 14. Qa4 {[%emt 0:09:19]} a6 {[%emt 0:08:40]} 15. dxc5 {[%emt 0:05:12]} Bxc5+ {[%emt 0:01:28]} 16. Kh1 {[%emt 0:05:15]} O-O {[%emt 0:07:07]} 17. Qd1 {[%emt 0:02:53]} b5 {[%emt 0:02:31]} 18. b4 {[%emt 0:02:23]} Bb6 {[%emt 0:00:22]} 19. Rc2 {[%emt 0:05:18]} a5 {[%emt 0:02:30]} 20. Qc1 {[%emt 0:03:14]} Qa7 {[%emt 0:03:26]} 21. Rb2 {[%emt 0:03:11]} a4 {[%emt 0:01:37]} 22. a3 {[%emt 0:01:23]} Be3 {[%emt 0:02:08]} 23. Re1 {[%emt 0:03:29]} Bxd2 {[%emt 0:04:07]} 24. Rxd2 {[%emt 0:01:11]} Ne3 {[%emt 0:00:50]} 25. Ned4 {[%emt 0:00:40]} Nxd4 {[%emt 0:00:36]} 26. Rxd4 {[%emt 0:01:30]} Nc4 {[%emt 0:01:27]} 27. Nd2 {[%emt 0:00:34]} Rac8 {[%emt 0:01:16]} 28. Nxc4 {[%emt 0:01:17]} Rxc4 {[%emt 0:00:38]} 29. Rxc4 {[%emt 0:00:15]} bxc4 {[%emt 0:02:05]} 30. Qe3 {[%emt 0:00:38]} Qxe3 {[%emt 0:00:47]} 31. Rxe3 {[%emt 0:01:02]} Rd8 {[%emt 0:05:55]} 32. Re2 {[%emt 0:00:40]} d4 {[%emt 0:04:06]} 33. Rd2 {[%emt 0:00:41]} Kf8 {[%emt 0:00:42]} 34. Kg1 {[%emt 0:00:24]} Ke7 {[%emt 0:02:12]} 35. cxd4 {[%emt 0:01:32]} Kd7 {[%emt 0:02:05]} 36. Rc2 {[%emt 0:01:45]} Rc8 {[%emt 0:01:15]} 37. Kf2 {[%emt 0:00:17]} Rc7 {[%emt 0:00:35]} 38. Ke3 {[%emt 0:00:36]} Kc8 {[%emt 0:00:22]} 39. Kd2 {[%emt 0:00:38]} Kb7 {[%emt 0:00:23]} 40. Kc3 {[%emt 0:00:24]} Kb6 {[%emt 0:00:20]} 41. Rb2 {[%emt 0:01:55]} Kb5 {[%emt 0:00:25]} 42. g4 {[%emt 0:00:45]} Rc6 {[%emt 0:00:44]} 43. Rf2 {[%emt 0:00:44]} g6 {[%emt 0:01:20]} 44. g5 {[%emt 0:00:27]} Rc8 {[%emt 0:00:43]} 45. Rf3 {[%emt 0:00:34]} f5 {[%emt 0:02:44]} 46. exf6 {[%emt 0:00:22]} Rc7 {[%emt 0:01:32]} 47. Re3 {[%emt 0:00:26]} h6 {[%emt 0:01:04]} 48. Rxe6 {[%emt 0:01:27]} hxg5 {[%emt 0:00:10]} 49. fxg5 {[%emt 0:00:59]} Rh7 {[%emt 0:00:28]} 50. Re3 {[%emt 0:01:51]} Rxh2 {[%emt 0:00:43]} 51. d5 {[%emt 0:00:54]} Ra2 {[%emt 0:01:07]} 52. Kd4 {[%emt 0:00:50]} Rf2 {[%emt 0:01:02]} 53. Ke4 {[%emt 0:00:56]} Rf5 {[%emt 0:00:22]} 54. Rf3 {[%emt 0:01:07]} Rxf3 {[%emt 0:00:33]} 55. Kxf3 {[%emt 0:00:10]} c3 {[%emt 0:00:05]} 56. Ke2 {[%emt 0:00:17]} Kc4 {[%emt 0:00:15]} 57. Kd1 {[%emt 0:00:44]} Kb3 {[%emt 0:00:08]} 58. Kc1 {[%emt 0:00:30]} Kxa3 {[%emt 0:00:20]} 59. f7 {[%emt 0:00:28]} Kb3 {[%emt 0:00:20]} 60. f8=Q {[%emt 0:00:25]} a3 {[%emt 0:00:17]} 61. Qf2 {[%emt 0:00:23]} a2 {[%emt 0:00:27]} 62. Qc2+ {[%emt 0:00:18]} Kc4 {[%emt 0:00:28]} 63. Qxa2+ {[%emt 0:00:30]} Kb5 {[%emt 0:00:12]} 64. Qb3 {[%emt 0:00:21]} Kb6 {[%emt 0:00:11]} 65. Qxc3 {[%emt 0:00:15]} Kb7 {[%emt 0:00:22]} 66. Qc6+ {[%emt 0:00:07]} Ka7 {[%emt 0:00:18]} 67. Qb5 {[%emt 0:00:12]} Ka8 {[%emt 0:00:14]} 68. Kc2 {[%emt 0:19:32]} 1-0